bitfinex-derivatives/quotes_ETHF0:USTF0_20240826
["timestamp","ask_amount","ask_price","bid_price","bid_amount"]
[1724661985556,0.00352895,2735.7,2735.6,0.36543]
[1724661986153,0.00352895,2735.7,2735.6,4.02063]
[1724661988961,0.00352895,2735.7,2735.6,4.93422]
[1724661989654,0.00547645,2735.9,2735.8,0.36541]
[1724661989853,0.00330618,2735.9,2735.8,1.27894]
[1724661990057,0.00330618,2735.9,2735.8,4.93414]
[1724661990361,0.00330618,2735.9,2735.8,9.93414]
[1724661990755,0.00781789,2735.9,2735.8,9.93414]
[1724661994161,0.00781789,2735.9,2735.8,13.14194]
[1724661994961,0.00781789,2735.9,2735.8,14.05547]
[1724661995751,7.89e-06,2735.9,2735.8,14.05547]
[1724661995959,0.3751,2736.6,2736.5,0.36531]
[1724661996155,3.2078,2736.9,2736.8,0.36527]
[1724661996561,6.8614,2736.9,2736.7,0.36528]
[1724661996960,6.86532557,2736.9,2736.7,0.36809659]
[1724661997553,0.3574,2736.8,2736.7,0.36809659]
[1724661998072,4.011,2736.8,2736.7,0.36809659]
[1724661998365,0.3574,2736.8,2736.7,0.36809659]
[1724662005971,0.3574,2736.8,2736.7,1.68809659]
[1724662006771,0.3574,2736.8,2736.7,0.36809659]
[1724662009082,5.69627,2736.8,2736.7,0.00281659]
[1724662009680,4.37627,2736.8,2736.7,0.00281659]
[1724662010180,4.011,2736.8,2736.7,0.00281659]
[1724662010974,5.69627,2736.8,2736.5,0.36531]
[1724662011178,2.04267,2736.8,2736.5,0.36531]
[1724662011675,0.3653,2736.7,2736.3,0.36533]
[1724662011877,0.3653,2736.7,2736.4,1.32]
[1724662012076,0.3644,2736.6,2736.4,1.68943679]
[1724662012582,0.3644,2736.6,2736.5,1.68531]
[1724662024886,4.0188,2736.6,2736.4,0.00411679]
[1724662025083,2.27256634,2736.6,2736.4,0.00411679]
[1724662025584,1.90816634,2736.5,2736.4,0.36944679]
[1724662026482,2.75818337,2736.6,2736.5,0.36531]
[1724662026880,6.41258337,2736.6,2736.5,0.36531]
[1724662027084,4.0188,2736.6,2736.5,0.36531]
[1724662027584,2.27539146,2736.6,2736.5,0.36531]
[1724662027891,2.27539146,2736.6,2736.5,1.68531]
[1724662029173,5.48319146,2736.6,2736.5,1.68531]
[1724662029689,3.5722,2736.6,2736.5,1.68531]
[1724662029894,5.48573907,2736.6,2736.5,1.68531]
[1724662030087,3.5722,2736.6,2736.5,1.68531]
[1724662031688,10.94038337,2736.6,2736.4,0.00411679]
[1724662031992,2.39378337,2736.5,2736.4,0.36944679]
[1724662034086,3.5722,2736.6,2736.4,0.36944679]
[1724662034485,3.9375,2736.6,2736.4,0.36944679]
[1724662034689,6.81185885,2736.6,2736.4,0.36944679]
[1724662035394,6.44655885,2736.6,2736.5,0.36531]
[1724662035581,6.44655885,2736.6,2736.4,0.00411679]
[1724662035582,6.44655885,2736.6,2736.4,0.36943679]
[1724662035991,3.23875885,2736.6,2736.4,0.36943679]
[1724662036192,3.2078,2736.5,2736.4,0.36943679]
[1724662038089,3.23875885,2736.6,2736.4,0.36943679]
[1724662038297,3.2078,2736.5,2736.4,0.36943679]
[1724662043397,8.1822,2736.5,2736.4,0.00411679]
[1724662043995,11.05655885,2736.5,2736.4,0.00411679]
[1724662044190,8.54751,2736.5,2736.4,0.00411679]
[1724662044396,8.1822,2736.5,2736.4,0.36944679]
[1724662044601,3.2078,2736.5,2736.4,0.36944679]
[1724662044793,2.87435885,2736.7,2736.6,0.3653]
[1724662045093,2.39455477,2736.7,2736.6,1.6853]
[1724662045292,1.91559146,2736.8,2736.7,0.36529]
[1724662045603,1.91951703,2736.9,2736.8,0.36527]
[1724662045806,0.00392557,2736.9,2736.8,6.29546204]
[1724662046500,0.00392557,2736.9,2736.8,11.29546204]
[1724662047999,0.00392557,2736.9,2736.8,13.13546204]
[1724662048201,0.00392557,2736.9,2736.8,12.17887]
[1724662048595,0.00392557,2736.9,2736.8,17.25645204]
[1724662049097,0.00392557,2736.9,2736.8,17.25565556]
[1724662050399,0.00392557,2736.9,2736.8,33.95565556]
[1724662051096,0.00392557,2736.9,2736.8,32.99986]
[1724662053506,0.00392557,2736.9,2736.8,37.14892819]
[1724662054496,5.57e-06,2736.9,2736.8,38.06211819]
[1724662054704,5.57e-06,2736.9,2736.8,39.01791375]
[1724662054909,5.57e-06,2736.9,2736.8,40.84460385]
[1724662055198,5.57e-06,2736.9,2736.8,39.01791375]
[1724662056105,0.00547645,2737.1,2737.0,1.27838]
[1724662056600,0.00547645,2737.1,2737.0,9.93198]
[1724662057105,0.00922255,2737.1,2737.0,9.93198]
[1724662057303,0.00922255,2737.1,2737.0,10.29608]
[1724662058193,0.00922255,2737.1,2737.0,5.29608]
[1724662058601,0.00922255,2737.1,2737.0,0.36525]
[1724662061906,0.00922255,2737.1,2737.0,1.27838]
[1724662064312,0.00922255,2737.1,2737.0,4.93198]
[1724662068105,0.00922255,2737.1,2737.0,6.25198]
[1724662074809,0.00922255,2737.1,2737.0,22.95198]
[1724662076319,0.00922255,2737.1,2737.0,6.25198]
[1724662078309,0.00922255,2737.1,2737.0,2.59838]
[1724662078513,0.00922255,2737.1,2737.0,0.36525]
[1724662078714,0.00922255,2737.1,2737.0,1.68525]
[1724662081317,0.00922255,2737.1,2737.0,2.59838]
[1724662081715,0.00922255,2737.1,2737.0,2.98218]
[1724662082125,0.00922255,2737.1,2737.0,2.59838]
[1724662082823,0.00922255,2737.1,2737.0,1.68525]
[1724662088013,0.00922255,2737.1,2736.8,0.00547645]
[1724662088014,6.87062255,2737.1,2736.8,0.00547645]
[1724662088218,0.36526,2736.9,2736.8,0.00547645]
[1724662088530,5.93445146,2736.9,2736.7,0.36528]
[1724662088818,3.6536,2736.8,2736.7,0.36528]
[1724662089026,5.56919146,2736.9,2736.8,0.36527]
[1724662090212,6.04815477,2736.9,2736.8,0.36527]
[1724662090828,6.04815477,2736.9,2736.7,1.32]
[1724662090829,6.04815477,2736.9,2736.7,1.68528]
[1724662091017,1.91210396,2736.8,2736.7,1.68528]
[1724662091218,6.04815477,2736.9,2736.8,0.36527]
[1724662091619,6.41341477,2736.9,2736.7,1.68528]
[1724662092328,1.91223148,2736.8,2736.7,1.68528]
[1724662092722,5.56583148,2736.8,2736.7,1.68528]
[1724662093026,3.6536,2736.8,2736.7,1.68528]
[1724662093325,5.56541995,2736.8,2736.7,1.68528]
[1724662094529,1.91181995,2736.8,2736.7,1.68528]
[1724662097128,1.91181995,2736.9,2736.8,0.36527]
[1724662097333,0.36526,2736.9,2736.8,1.32]
[1724662097532,2.27493177,2736.9,2736.8,1.32]
[1724662097924,0.36526,2736.9,2736.8,1.32]
[1724662098124,2.27465175,2736.9,2736.8,1.32]
[1724662099022,5.48245175,2736.9,2736.8,1.32]
[1724662099226,5.48245175,2736.9,2736.8,1.68527]
[1724662102538,5.48245175,2736.9,2736.8,1.32]
[1724662104135,5.48245175,2736.9,2736.8,1.68527]
[1724662104727,5.48245175,2736.9,2736.8,1.32]
[1724662105639,2.27465175,2736.9,2736.8,1.32]
[1724662105834,5.48245175,2736.9,2736.8,1.32]
[1724662106439,2.27465175,2736.9,2736.8,1.32]
[1724662106835,5.48245175,2736.9,2736.8,1.32]
[1724662108539,2.27465175,2736.9,2736.8,1.32]
[1724662109040,5.48245175,2736.9,2736.8,1.32]
[1724662109539,14.09458,2736.9,2736.6,0.00547645]
[1724662109843,0.36529,2736.7,2736.6,0.00547645]
[1724662110146,0.36529,2736.7,2736.6,0.37077645]
[1724662110328,4.01969,2736.7,2736.6,0.00547645]
[1724662110738,3.6544,2736.7,2736.6,0.37077645]
[1724662111044,2.27315706,2736.8,2736.7,0.36529]
[1724662111235,2.27315706,2736.8,2736.7,1.68529]
[1724662112642,2.27315706,2736.8,2736.7,2.04139]
[1724662114239,5.48095706,2736.8,2736.7,2.04139]
[1724662115842,5.11567706,2736.8,2736.7,2.04139]
[1724662116442,3.57307,2736.8,2736.7,2.04139]
[1724662117945,5.48094706,2736.8,2736.7,2.04139]
[1724662119841,5.11567706,2736.8,2736.7,0.72139]
[1724662120041,3.2078,2736.8,2736.7,2.95462]
[1724662121049,3.2078,2736.8,2736.7,6.60822]
[1724662121251,0.00922255,2737.1,2737.0,1.27838]
[1724662121453,0.00922255,2737.1,2737.0,2.59838]
[1724662121641,0.00922255,2737.1,2737.0,12.16511]
[1724662121842,0.00922255,2737.1,2737.0,28.86511]
[1724662125857,1.90787706,2737.6,2737.0,32.07291]
[1724662126056,1.90787706,2737.9,2737.5,1.32]
[1724662126358,0.353,2737.9,2737.8,1.68514]
[1724662126842,0.353,2737.9,2737.8,1.32]
[1724662127049,0.35648371,2737.9,2737.8,1.32]
[1724662127248,0.35648371,2737.9,2737.8,1.68514]
[1724662127857,0.35648371,2737.9,2737.8,1.32]
[1724662128051,4.37441371,2737.9,2737.7,1.32]
[1724662128247,3.6528,2737.8,2737.6,1.32]
[1724662128447,1.90787706,2737.8,2737.6,1.32]
[1724662128753,5.56067706,2737.8,2737.6,1.32]
[1724662129746,5.56067706,2737.8,2737.5,0.36517]
[1724662129946,1.90787706,2737.8,2737.7,1.32]
[1724662130162,2.62949077,2737.9,2737.7,1.32]
[1724662130455,6.28229077,2737.9,2737.7,1.32]
[1724662131963,3.6528,2737.8,2737.7,1.32]
[1724662133758,4.01794,2737.8,2737.7,1.32]
[1724662134261,3.6528,2737.8,2737.7,1.32]
[1724662134456,3.6528,2737.8,2737.7,1.68515]
[1724662134658,0.35648371,2737.9,2737.8,0.36514]
[1724662135168,4.00928371,2737.9,2737.8,0.36514]
[1724662135458,4.37441371,2737.9,2737.7,1.68515]
[1724662137263,0.36514,2737.8,2737.7,1.68515]
[1724662137656,3.6528,2737.8,2737.7,1.68515]
[1724662138765,6.8606,2737.8,2737.7,1.68515]
[1724662140864,3.6528,2737.8,2737.7,1.68515]
[1724662141262,3.2078,2737.8,2737.7,1.68515]
[1724662144257,0.00348371,2737.9,2737.8,1.278]
[1724662144461,0.00348371,2737.9,2737.8,2.598]
[1724662144659,0.00348371,2737.9,2737.8,6.2508]
[1724662147667,0.00348371,2737.9,2737.8,0.36514]
[1724662147864,0.00348371,2737.9,2737.8,1.68514]
[1724662148259,0.38908371,2737.9,2737.8,1.68514]
[1724662148860,4.04188371,2737.9,2737.3,4.195]
[1724662149170,0.3549,2737.8,2737.6,1.32]
[1724662149370,0.36515,2737.7,2737.6,1.68516]
[1724662149672,3.6528,2737.7,2737.6,1.68516]
[1724662149874,0.3549,2737.8,2737.6,1.68516]
[1724662150063,0.72005,2737.8,2737.6,1.68516]
[1724662150469,0.72005,2737.8,2737.7,0.36515]
[1724662150970,4.37285,2737.8,2737.7,0.36515]
[1724662151563,4.37285,2737.8,2737.6,1.32]
[1724662151564,0.36515,2737.7,2737.6,1.32]
[1724662151770,0.00348371,2737.9,2737.8,0.36514]
[1724662151971,0.00348371,2737.9,2737.8,1.68514]
[1724662152470,0.00348371,2737.9,2737.8,2.598]
[1724662153959,0.00348371,2737.9,2737.8,4.438]
[1724662157075,0.00348371,2737.9,2737.8,3.52514]
[1724662158379,0.00348371,2737.9,2737.8,4.438]
[1724662159568,0.00348371,2737.9,2737.8,8.0908]
[1724662167174,0.00348371,2737.9,2737.8,7.17794]
[1724662168479,0.00348371,2737.9,2737.8,3.52514]
[1724662168681,0.38088371,2737.9,2737.8,0.36514]
[1724662168983,2.66486077,2737.9,2737.8,0.36514]
[1724662169189,0.75698371,2737.9,2737.8,0.36514]
[1724662175981,0.75698371,2737.9,2737.8,1.68514]
[1724662176180,0.36515,2737.8,2737.4,0.95579556]
[1724662176375,5.11567706,2737.7,2737.5,1.32]
[1724662176581,5.11567706,2737.7,2737.6,1.68517]
[1724662176890,8.76847706,2737.7,2737.6,1.68517]
[1724662177978,5.11567706,2737.7,2737.6,1.68517]
[1724662178391,3.2078,2737.7,2737.6,1.68517]
[1724662178590,1.90787706,2737.8,2737.7,0.36515]
[1724662179189,1.90787706,2737.8,2737.7,0.74935]
[1724662183285,3.15153848,2737.9,2737.8,0.36514]
[1724662183589,3.15153848,2737.9,2737.8,1.68514]
[1724662183794,6.80433848,2737.9,2737.8,1.68514]
[1724662183988,3.15153848,2737.9,2737.8,1.68514]
[1724662184686,0.75698371,2737.9,2737.8,1.68514]
[1724662185284,3.15153848,2737.9,2737.8,1.68514]
[1724662186195,6.35933848,2737.9,2737.8,1.68514]
[1724662186802,5.8762711,2737.9,2737.8,1.68514]
[1724662187184,6.2414011,2737.9,2737.8,1.68514]
[1724662187383,4.32991371,2737.9,2737.8,1.68514]
[1724662187682,10.37726848,2737.9,2737.8,1.68514]
[1724662188288,10.38116848,2737.9,2737.8,1.68514]
[1724662190092,7.17336848,2737.9,2737.8,1.68514]
[1724662190290,7.17336848,2737.9,2737.8,1.32]
[1724662190591,4.77881371,2737.9,2737.8,1.32]
[1724662191302,0.36514,2737.8,2737.7,0.36514]
[1724662191482,2.75465849,2737.8,2737.7,1.68514]
[1724662191889,2.38951849,2737.8,2737.7,1.68514]
[1724662193097,5.59731849,2737.8,2737.7,1.68514]
[1724662194498,3.2078,2737.8,2737.7,1.68514]
[1724662197099,5.59731849,2737.8,2737.7,1.68514]
[1724662197396,5.96245849,2737.8,2737.7,1.68514]
[1724662197697,3.57294,2737.8,2737.7,1.68514]
[1724662198198,5.96245849,2737.8,2737.7,1.68514]
[1724662198506,9.61525849,2737.8,2737.7,1.32]
[1724662199588,0.36515,2737.7,2737.6,1.32]
[1724662199786,2.75466849,2737.7,2737.6,1.32]
[1724662199990,6.40746849,2737.7,2737.6,1.32]
[1724662201801,2.38951849,2737.7,2737.6,1.68517]
[1724662203393,3.2078,2737.8,2737.7,0.36515]
[1724662203595,5.11914024,2737.8,2737.7,1.68515]
[1724662206902,3.2078,2737.8,2737.7,1.68515]
[1724662207903,3.5116322,2737.9,2737.8,0.36514]
[1724662208212,6.7194322,2737.9,2737.8,0.36514]
[1724662208506,3.5116322,2737.9,2737.8,0.36514]
[1724662208690,6.3543022,2737.9,2737.8,0.36514]
[1724662208895,6.7194322,2737.9,2737.8,0.36514]
[1724662210601,4.32991371,2737.9,2737.8,0.36514]
[1724662210802,6.7199618,2737.9,2737.8,0.36514]
[1724662211302,4.32991371,2737.9,2737.8,0.36514]
[1724662211508,0.36518,2737.5,2737.4,0.36519]
[1724662211806,2.75543096,2737.5,2737.4,1.32]
[1724662211996,4.01798,2737.5,2737.4,1.32]
[1724662212198,6.40786256,2737.5,2737.4,1.32]
[1724662212397,4.01798,2737.5,2737.4,1.32]
[1724662213793,4.01798,2737.5,2737.0,0.3792]
[1724662213794,0.36525,2737.0,2736.8,0.95579556]
[1724662214003,5.11958226,2736.9,2736.8,0.36527]
[1724662214202,3.9508,2736.9,2736.8,1.68527]
[1724662214407,6.34052783,2736.9,2736.8,1.68527]
[1724662214795,6.34052783,2736.9,2736.8,1.32]
[1724662215109,6.34052783,2736.9,2736.7,1.685]
[1724662215110,6.70413182,2736.9,2736.7,1.685]
[1724662215306,1.91048343,2736.8,2736.7,0.365]
[1724662215514,1.91048343,2736.8,2736.6,0.00547645]
[1724662215515,6.04167182,2736.8,2736.6,0.00547645]
[1724662215710,6.04167182,2736.8,2736.6,1.32547645]
[1724662215711,0.36529,2736.7,2736.6,1.32547645]
[1724662215905,2.75336182,2736.7,2736.6,1.32547645]
[1724662216108,5.92871626,2736.7,2736.6,1.32547645]
[1724662218215,4.01969,2736.7,2736.6,1.32547645]
[1724662221221,3.6544,2736.7,2736.6,1.32547645]
[1724662222012,3.6544,2736.7,2736.6,1.69077645]
[1724662222214,3.5845,2736.9,2736.8,0.36527]
[1724662222718,3.2078,2736.9,2736.8,0.36527]
[1724662225620,3.2078,2736.9,2736.8,1.68527]
[1724662227418,3.57306,2736.9,2736.7,1.68528]
[1724662227612,0.3825,2736.8,2736.7,1.68528]
[1724662234016,0.36529,2736.7,2736.6,0.00547645]
[1724662234314,0.71729,2736.7,2736.6,1.32547645]
[1724662234518,0.352,2736.7,2736.6,1.32547645]
[1724662234724,0.352,2736.7,2736.6,1.69077645]
[1724662235525,0.3825,2736.8,2736.7,0.36529]
[1724662238435,0.74777,2736.8,2736.7,0.36529]
[1724662239028,0.3825,2736.8,2736.7,0.36529]
[1724662244030,0.74777,2736.8,2736.7,0.36529]
[1724662244633,0.3825,2736.8,2736.7,0.36529]
[1724662245536,0.3825,2736.8,2736.7,1.68529]
[1724662248525,3.2078,2736.9,2736.7,1.68529]
[1724662248733,3.2078,2736.9,2736.8,1.27846]
[1724662248923,3.2078,2736.9,2736.8,1.63086]
[1724662249127,3.2078,2736.9,2736.8,5.28446]
[1724662250427,3.2078,2736.9,2736.8,4.37127]
[1724662250634,3.2078,2736.9,2736.8,5.69127]
[1724662254836,3.2078,2736.9,2736.8,6.60446]
[1724662256041,3.2078,2736.9,2736.8,11.60446]
[1724662256435,1.90902626,2737.2,2737.1,0.36523]
[1724662256741,1.90902626,2737.4,2737.3,0.36521]
[1724662256933,1.90902626,2737.4,2737.3,1.68521]
[1724662257434,0.7287,2737.5,2737.4,0.36519]
[1724662257833,0.7287,2737.5,2737.3,1.6852]
[1724662258131,1.91019161,2737.4,2737.3,1.6852]
[1724662258526,0.7287,2737.5,2737.4,0.36519]
[1724662261343,3.11677182,2737.5,2737.4,0.36519]
[1724662261531,0.7287,2737.5,2737.4,0.36519]
[1724662261935,3.11677182,2737.5,2737.4,0.36519]
[1724662262337,0.7287,2737.5,2737.4,0.36519]
[1724662262845,3.9365,2737.5,2737.4,0.36519]
[1724662263049,0.7287,2737.5,2737.4,0.36519]
[1724662263544,3.9365,2737.5,2737.4,0.36519]
[1724662263942,4.30168,2737.5,2737.3,1.6852]
[1724662264150,1.90886674,2737.4,2737.3,1.32]
[1724662264538,1.90886674,2737.4,2737.2,0.36521]
[1724662264539,2.27405674,2737.4,2737.2,1.32]
[1724662264744,2.27407695,2737.4,2737.2,1.68522]
[1724662265048,1.90888695,2737.3,2737.2,1.68522]
[1724662265347,2.27407695,2737.4,2737.2,1.68522]
[1724662265540,1.90888695,2737.3,2737.2,1.68522]
[1724662265844,1.90888695,2737.4,2737.3,0.36521]
[1724662266250,1.90888695,2737.4,2737.3,1.68521]
[1724662266947,5.84538695,2737.5,2737.4,0.36519]
[1724662267452,9.49818695,2737.5,2737.4,0.36519]
[1724662267656,5.84538695,2737.5,2737.4,0.36519]
[1724662267849,5.84538695,2737.5,2737.4,0.74909]
[1724662271441,5.84928695,2737.5,2737.4,0.74909]
[1724662271645,5.84928695,2737.5,2737.4,0.36519]
[1724662271949,4.30558,2737.5,2737.3,1.6852]
[1724662272153,1.90859213,2737.4,2737.3,1.6852]
[1724662272350,1.90859213,2737.4,2737.3,0.3652]
[1724662273255,1.90859213,2737.4,2736.7,8.316]
[1724662273256,6.88139213,2737.4,2736.7,3.2078]
[1724662273550,1.90855702,2737.1,2736.9,1.68526]
[1724662273760,0.7191,2737.0,2736.9,1.68526]
[1724662281349,0.7191,2737.0,2736.9,0.36526]
[1724662281549,0.7191,2737.0,2736.8,0.91318]
[1724662281550,2.99290702,2737.0,2736.8,1.68527]
[1724662281763,1.90855702,2736.9,2736.8,0.36527]
[1724662282154,3.6536,2736.9,2736.8,0.36527]
[1724662282853,3.6536,2736.9,2736.8,1.68527]
[1724662283360,3.47242182,2737.0,2736.8,1.68527]
[1724662284153,3.47242182,2737.0,2736.9,0.36526]
[1724662284154,3.10717182,2737.0,2736.9,0.36526]
[1724662284654,6.76077182,2737.0,2736.9,0.36526]
[1724662284958,6.76077182,2737.0,2736.9,1.68526]
[1724662285163,4.3727,2737.0,2736.9,1.68526]
[1724662290053,6.76077182,2737.0,2736.9,1.68526]
[1724662290858,4.3727,2737.0,2736.9,1.68526]
[1724662291068,6.76077182,2737.0,2736.9,1.68526]
[1724662293372,9.96857182,2737.0,2736.9,1.68526]
[1724662293560,6.76077182,2737.0,2736.9,1.68526]
[1724662293761,9.96857182,2737.0,2736.9,1.68526]
[1724662294069,10.33382182,2737.0,2736.8,0.36527]
[1724662294265,6.68022182,2737.0,2736.8,1.68527]
[1724662294462,6.31497182,2737.0,2736.9,0.36526]
[1724662294663,0.36528,2736.8,2736.6,0.37077645]
[1724662294971,1.90927664,2736.7,2736.6,1.69077645]
[1724662296268,1.90927664,2736.8,2736.7,0.36529]
[1724662296469,1.90927664,2736.9,2736.8,1.68527]
[1724662297063,3.1056958,2737.0,2736.9,0.36526]
[1724662297964,6.7592958,2737.0,2736.9,0.36526]
[1724662298162,4.3727,2737.0,2736.9,0.36526]
[1724662299670,6.7592958,2737.0,2736.9,0.36526]
[1724662300076,4.3727,2737.0,2736.9,0.36526]
[1724662300670,4.3727,2737.0,2736.8,1.68527]
[1724662300671,7.1245458,2737.0,2736.8,1.68527]
[1724662300876,3.4709458,2737.0,2736.8,1.68527]
[1724662301170,3.2078,2736.9,2736.8,1.68527]
[1724662305672,5.11668118,2736.9,2736.8,1.68527]
[1724662307274,5.48194118,2736.9,2736.7,2.05528]
[1724662307479,1.90888118,2736.8,2736.7,2.05528]
[1724662307983,5.9596558,2736.9,2736.7,2.05528]
[1724662308377,0.36527,2736.8,2736.7,1.69]
[1724662310574,0.36527,2736.8,2736.7,2.05529]
[1724662313290,2.7518658,2736.8,2736.7,2.05529]
[1724662313874,0.36529,2736.7,2736.6,0.00547645]
[1724662314081,3.11054498,2736.7,2736.6,0.37077645]
[1724662316185,6.31834498,2736.7,2736.6,0.37077645]
[1724662316484,5.95305498,2736.7,2736.6,0.37077645]
[1724662317883,6.31834498,2736.7,2736.6,0.37077645]
[1724662318684,3.11054498,2736.7,2736.6,0.37077645]
[1724662318884,6.31834498,2736.7,2736.6,0.37077645]
[1724662319080,5.95305498,2736.7,2736.6,0.37077645]
[1724662322778,2.74525498,2736.7,2736.6,0.37077645]
[1724662322983,5.95305498,2736.7,2736.6,0.37077645]
[1724662323181,3.5664,2736.7,2736.6,0.37077645]
[1724662323577,5.95488005,2736.7,2736.6,0.37077645]
[1724662324082,5.59628005,2736.7,2736.6,1.69077645]
[1724662324281,1.9110895,2736.8,2736.7,1.27852]
[1724662324482,1.9110895,2736.8,2736.7,2.95192]
[1724662324681,1.9110895,2736.9,2736.8,0.36527]
[1724662324875,1.9110895,2736.9,2736.8,2.04197]
[1724662325279,5.59628005,2737.0,2736.9,0.36526]
[1724662326494,3.2078,2737.0,2736.9,4.01886]
[1724662326686,5.11924906,2737.0,2736.9,4.93202]
[1724662327191,5.11924906,2737.0,2736.9,4.01886]
[1724662328488,1.91144906,2737.0,2736.9,4.01886]
[1724662330190,1.91144906,2737.1,2737.0,0.36525]
[1724662330387,1.91144906,2737.1,2737.0,1.68525]
[1724662330588,1.91069788,2737.1,2737.0,4.9736]
[1724662330790,1.91069788,2737.1,2737.0,5.33885]
[1724662331887,1.91069788,2737.2,2737.1,0.36523]
[1724662332193,1.91069788,2737.2,2737.1,1.68523]
[1724662336182,1.91069788,2737.2,2737.1,5.33883]
[1724662336389,3.57301,2737.3,2737.1,5.33883]
[1724662336390,5.48370788,2737.3,2737.2,0.36522]
[1724662336891,3.57301,2737.3,2737.2,0.36522]
[1724662337295,3.2078,2737.3,2737.2,0.36522]
[1724662337495,5.96149005,2737.3,2737.1,1.68523]
[1724662337795,1.90876107,2737.2,2737.1,1.68523]
[1724662337987,0.36522,2737.2,2737.1,1.68523]
[1724662338695,5.96150005,2737.3,2737.1,1.68523]
[1724662339293,1.90846311,2737.2,2737.1,1.68523]
[1724662339686,5.96150005,2737.3,2737.1,5.33883]
[1724662339885,5.96150005,2737.3,2737.2,0.36522]
[1724662340293,5.96150005,2737.3,2737.1,1.68523]
[1724662340487,1.9083041,2737.2,2737.1,1.68523]
[1724662340898,1.9083041,2737.2,2737.1,5.33883]
[1724662341089,0.36522,2737.2,2737.1,5.33883]
[1724662341595,2.27307191,2737.2,2737.1,5.33883]
[1724662342195,1.90785191,2737.2,2737.1,5.33883]
[1724662342388,1.90785191,2737.2,2737.1,1.68523]
[1724662343194,2.27307191,2737.2,2737.1,1.68523]
[1724662343389,1.90785191,2737.2,2737.1,1.68523]
[1724662343587,5.96150005,2737.3,2737.1,1.68523]
[1724662344196,5.96150005,2737.3,2737.2,0.36522]
[1724662344395,0.36522,2737.2,2737.1,1.68523]
[1724662344599,1.90781249,2737.2,2737.1,1.68523]
[1724662347297,5.48083249,2737.3,2737.2,0.36522]
[1724662351194,3.57302,2737.3,2737.2,0.36522]
[1724662351384,0.36522,2737.2,2737.1,1.68522]
[1724662351684,2.27280612,2737.2,2737.1,1.68522]
[1724662352086,5.48060612,2737.3,2737.1,1.68522]
[1724662352388,5.11538612,2737.3,2737.2,0.36522]
[1724662352695,5.47078612,2737.3,2737.2,0.36522]
[1724662353399,1.90758612,2737.5,2737.2,4.56666]
[1724662353593,5.11538612,2737.6,2737.5,0.36518]
[1724662353892,5.11538612,2737.6,2737.5,1.68518]
[1724662354099,3.2078,2737.6,2737.5,1.68518]
[1724662354400,5.11538612,2737.6,2737.5,1.68518]
[1724662355500,3.2078,2737.6,2737.5,1.68518]
[1724662357398,0.37018371,2737.9,2737.8,0.36514]
[1724662357600,0.37018371,2737.9,2737.8,1.68514]
[1724662359305,0.00348371,2737.9,2737.8,1.68514]
[1724662359888,0.00348371,2737.9,2737.8,5.33794]
[1724662360098,0.00348371,2737.9,2737.8,11.2508]
[1724662361101,0.00348371,2737.9,2737.8,15.37146]
[1724662361102,3.71e-06,2737.9,2737.8,15.37146]
[1724662361698,0.00547645,2738.1,2738.0,1.68511]
[1724662361897,0.00547645,2738.1,2738.0,6.68511]
[1724662362092,0.00547645,2738.1,2738.0,10.71131]
[1724662362492,0.00547645,2738.1,2738.0,5.71131]
[1724662362803,0.00547645,2738.1,2738.0,10.71131]
[1724662362804,0.00877516,2738.1,2738.0,10.71131]
[1724662365103,0.00877516,2738.1,2738.0,11.6241]
[1724662366207,0.00877516,2738.1,2738.0,4.39131]
[1724662366508,0.00877516,2738.1,2738.0,2.05931]
[1724662367007,0.00877516,2738.1,2738.0,5.71131]
[1724662376705,0.00877516,2738.1,2738.0,2.05931]
[1724662377405,0.00877516,2738.1,2738.0,5.71131]
[1724662379510,0.00877516,2738.1,2738.0,2.05931]
[1724662380914,0.00877516,2738.1,2738.0,1.68511]
[1724662382209,0.00877516,2738.1,2737.5,3.2078]
[1724662382407,0.00877516,2738.1,2737.9,1.32]
[1724662382408,3.57292,2738.0,2737.9,1.32]
[1724662382607,3.93582,2738.0,2737.9,1.68513]
[1724662382807,7.58782,2738.0,2737.9,1.68513]
[1724662383309,7.2227,2738.0,2737.8,0.36513]
[1724662383612,0.36513,2737.9,2737.8,1.68514]
[1724662384115,4.01793,2737.9,2737.8,1.32]
[1724662384411,0.36513,2737.9,2737.8,1.32]
[1724662384601,4.01793,2737.9,2737.8,1.32]
[1724662385002,8.6528,2737.9,2737.3,4.195]
[1724662385209,3.2078,2737.5,2737.4,0.36519]
[1724662385612,7.9721,2737.5,2737.4,0.36519]
[1724662386311,7.9721,2737.5,2737.4,1.68519]
[1724662386812,4.3193,2737.5,2737.4,1.68519]
[1724662387014,4.3193,2737.5,2737.4,2.03459]
[1724662387219,4.3193,2737.5,2737.4,2.94758]
[1724662387400,3.2078,2737.5,2737.4,6.60038]
[1724662387806,3.2078,2737.5,2737.4,5.68739]
[1724662389503,3.2078,2737.5,2737.4,2.03459]
[1724662394622,3.2078,2737.5,2737.4,1.68519]
[1724662395121,3.5718,2737.5,2737.4,1.68519]
[1724662396518,3.2078,2737.5,2737.4,1.68519]
[1724662397117,3.2078,2737.5,2737.4,2.06009]
[1724662398424,0.3845,2737.6,2737.5,0.36518]
[1724662400321,0.36519,2737.5,2737.4,0.36519]
[1724662400620,0.36519,2737.5,2737.3,1.6852]
[1724662400816,0.3608,2737.4,2737.3,1.6852]
[1724662404229,0.72599,2737.4,2737.3,1.32]
[1724662404417,0.72599,2737.4,2737.2,1.32]
[1724662404418,0.36521,2737.3,2737.2,1.32]
[1724662404723,0.36521,2737.3,2736.8,0.3624]
[1724662404724,0.3592,2737.3,2737.1,0.36523]
[1724662404912,0.3557,2737.2,2737.1,0.36523]
[1724662407420,3.5635,2737.2,2737.1,0.36523]
[1724662407924,0.3557,2737.2,2737.1,0.36523]
[1724662408927,3.5635,2737.2,2737.1,0.36523]
[1724662409527,3.5635,2737.2,2737.1,0.73853]
[1724662414536,3.5635,2737.2,2737.1,0.36523]
[1724662426537,5.47108612,2737.2,2737.1,0.36523]